[Event "16th EWICC 2015"]
[Site "Kutaisi"]
[Date "2015.06.03"]
[Round "9"]
[White "Gaprindashvili, Nona"]
[Black "Melia, Salome"]
[Result "0-1"]
[ECO "A73"]
[WhiteElo "2302"]
[BlackElo "2452"]
[Annotator "Robot 11"]
[PlyCount "116"]
[EventDate "2015.??.??"]
[EventCountry "GEO"]
[TimeControl "900+10"]

1. d4 {[%emt 0:00:02]} Nf6 {[%emt 0:00:02]} 2. c4 {[%emt 0:00:01]} e6 {[%emt 0:
00:02]} 3. Nf3 {[%emt 0:00:09]} c5 {[%emt 0:00:01]} 4. d5 {[%emt 0:00:05]} exd5
{[%emt 0:00:02]} 5. cxd5 {[%emt 0:00:01]} d6 {[%emt 0:00:02]} 6. Nc3 {[%emt 0:
00:03]} g6 {[%emt 0:00:02]} 7. e4 {[%emt 0:00:01]} Bg7 {[%emt 0:00:03]} 8. Be2
{[%emt 0:00:03]} O-O {[%emt 0:00:07]} 9. O-O {[%emt 0:00:04]} Bg4 {[%emt 0:00:
20]} 10. Bf4 {[%emt 0:00:39]} a6 {[%emt 0:00:10]} 11. a4 {[%emt 0:00:03]} Re8 {
[%emt 0:00:30]} 12. h3 {[%emt 0:00:08]} Bxf3 {[%emt 0:00:52]} 13. Bxf3 {[%emt
0:00:01]} Qe7 {[%emt 0:00:26]} 14. Qb3 {[%emt 0:00:58]} Qc7 {[%emt 0:00:47]}
15. e5 {[%emt 0:03:52]} dxe5 {[%emt 0:00:31]} 16. d6 {[%emt 0:00:01]} Qxd6 {
[%emt 0:00:03]} 17. Qxb7 {[%emt 0:00:02]} Nbd7 {[%emt 0:01:35]} 18. Rad1 {
[%emt 0:00:03]} Qe6 {[%emt 0:00:41]} 19. Bc1 {[%emt 0:03:11]} Rab8 {[%emt 0:00:
24]} 20. Qc7 {[%emt 0:00:02]} Rec8 {[%emt 0:05:59]} 21. Qd6 {[%emt 0:05:04]}
Rb6 {[%emt 0:00:02]} 22. Qxe6 {[%emt 0:00:01]} Rxe6 {[%emt 0:00:03]} 23. a5 {
[%emt 0:01:32]} c4 {[%emt 0:01:31]} 24. Be3 {[%emt 0:00:25]} e4 {[%emt 0:00:42]
} 25. Nxe4 {[%emt 0:00:12]} Nxe4 {[%emt 0:00:01]} 26. Rxd7 {[%emt 0:00:02]}
Bxb2 {[%emt 0:00:04]} 27. Rfd1 {[%emt 0:01:00]} Kg7 {[%emt 0:02:03]} 28. Rb7 {
[%emt 0:00:15]} c3 {[%emt 0:00:39]} 29. Rdd7 {[%emt 0:00:23]} Nd6 {[%emt 0:00:
07]} 30. Bd4+ {[%emt 0:00:31]} Kg8 {[%emt 0:00:32]} 31. Rxb2 {[%emt 0:00:21]}
cxb2 {[%emt 0:00:13]} 32. Bxb2 {[%emt 0:00:01]} Nc4 {[%emt 0:00:22]} 33. Bc3 {
[%emt 0:00:14]} Ne5 {[%emt 0:00:37]} 34. Bxe5 {[%emt 0:00:06]} Rxe5 {[%emt 0:
00:01]} 35. Bb7 {[%emt 0:00:02]} Rc1+ {[%emt 0:00:04]} 36. Kh2 {[%emt 0:00:01]}
Rxa5 {[%emt 0:00:19]} 37. Bd5 {[%emt 0:00:02]} Rc2 {[%emt 0:00:23]} 38. Bxf7+ {
[%emt 0:00:05]} Kf8 {[%emt 0:00:00]} 39. f4 {[%emt 0:00:07]} Rac5 {[%emt 0:00:
12]} 40. Be6 {[%emt 0:00:07]} Rc7 {[%emt 0:00:04]} 41. Rd4 {[%emt 0:00:06]} a5
{[%emt 0:00:19]} 42. f5 {[%emt 0:00:45]} gxf5 {[%emt 0:00:11]} 43. Bxf5 {[%emt
0:00:03]} R2c4 {[%emt 0:00:07]} 44. Rd8+ {[%emt 0:00:02]} Kg7 {[%emt 0:00:11]}
45. Ra8 {[%emt 0:00:01]} a4 {[%emt 0:00:11]} 46. Be6 {[%emt 0:00:38]} Re4 {
[%emt 0:00:17]} 47. Bd5 {[%emt 0:00:05]} Rd4 {[%emt 0:00:04]} 48. Bf3 {[%emt 0:
00:12]} h6 {[%emt 0:00:24]} 49. Ra6 {[%emt 0:00:07]} Rc3 {[%emt 0:00:10]} 50.
Kg3 {[%emt 0:00:09]} a3 {[%emt 0:00:01]} 51. h4 {[%emt 0:00:01]} Rd2 {[%emt 0:
00:23]} 52. Kf4 {[%emt 0:00:09]} a2 {[%emt 0:00:01]} 53. Ra7+ {[%emt 0:00:03]}
Kf6 {[%emt 0:00:01]} 54. Ra6+ {[%emt 0:00:01]} Ke7 {[%emt 0:00:03]} 55. Be4 {
[%emt 0:00:31]} Rc1 {[%emt 0:00:15]} 56. Ra7+ {[%emt 0:00:32]} Kd6 {[%emt 0:00:
19]} 57. Ra6+ {[%emt 0:00:01]} Kc7 {[%emt 0:00:19]} 58. Ra7+ {[%emt 0:00:01]}
Kb6 {[%emt 0:00:06]} 0-1

[Event "16th EWICC 2015"]
[Site "Kutaisi"]
[Date "2015.06.03"]
[Round "9"]
[White "Gevorgyan, Maria"]
[Black "Jalaghonia, Nino"]
[Result "1-0"]
[ECO "B23"]
[WhiteElo "2190"]
[BlackElo "1865"]
[Annotator "Robot 11"]
[PlyCount "53"]
[EventDate "2015.??.??"]
[EventCountry "GEO"]
[TimeControl "900+10"]

1. e4 {[%emt 0:00:02]} c5 {[%emt 0:00:03]} 2. Nc3 {[%emt 0:00:02]} g6 {[%emt 0:
00:04]} 3. d4 {[%emt 0:00:04]} Bg7 {[%emt 0:00:51]} 4. dxc5 {[%emt 0:00:02]}
Qa5 {[%emt 0:00:02]} 5. Bd2 {[%emt 0:00:02]} Qxc5 {[%emt 0:00:07]} 6. Nd5 {
[%emt 0:00:01]} e6 {[%emt 0:04:31]} 7. Bb4 {[%emt 0:00:05]} Qd4 {[%emt 0:01:46]
} 8. Qxd4 {[%emt 0:00:19]} Bxd4 {[%emt 0:00:01]} 9. Nc7+ {[%emt 0:00:02]} Kd8 {
[%emt 0:00:01]} 10. Nxa8 {[%emt 0:00:04]} b6 {[%emt 0:00:11]} 11. Bd6 {[%emt 0:
01:05]} Bxb2 {[%emt 0:00:27]} 12. Rb1 {[%emt 0:00:01]} Bc3+ {[%emt 0:00:01]}
13. Kd1 {[%emt 0:00:01]} Na6 {[%emt 0:01:02]} 14. Rb3 {[%emt 0:01:09]} Bd4 {
[%emt 0:01:25]} 15. Bxa6 {[%emt 0:00:26]} Bxa6 {[%emt 0:00:01]} 16. Nc7 {[%emt
0:00:01]} Bf1 {[%emt 0:00:52]} 17. Ne2 {[%emt 0:00:13]} Bxg2 {[%emt 0:00:04]}
18. Rg1 {[%emt 0:00:01]} Bc5 {[%emt 0:00:33]} 19. Bxc5 {[%emt 0:00:39]} bxc5 {
[%emt 0:00:10]} 20. Nxe6+ {[%emt 0:00:12]} fxe6 {[%emt 0:00:13]} 21. Rxg2 Ne7 {
[%emt 0:00:04]} 22. Rb5 {[%emt 0:00:42]} d6 {[%emt 0:00:19]} 23. Nf4 {[%emt 0:
00:04]} e5 {[%emt 0:00:19]} 24. Rb8+ {[%emt 0:00:21]} Nc8 {[%emt 0:00:01]} 25.
Nd5 {[%emt 0:00:01]} Kd7 {[%emt 0:00:11]} 26. Rg3 {[%emt 0:00:37]} Rf8 {[%emt
0:01:00]} 27. Rgb3 {[%emt 0:00:14]} 1-0

[Event "16th EWICC 2015"]
[Site "Kutaisi"]
[Date "2015.06.03"]
[Round "9"]
[White "Giorgadze, Elene"]
[Black "Mikadze, Miranda"]
[Result "0-1"]
[ECO "B10"]
[WhiteElo "1185"]
[BlackElo "2233"]
[Annotator "Robot 11"]
[PlyCount "106"]
[EventDate "2015.??.??"]
[EventCountry "GEO"]
[TimeControl "900+10"]

1. e4 {[%emt 0:00:01]} c6 {[%emt 0:00:10]} 2. Nf3 {[%emt 0:00:03]} d5 {[%emt 0:
00:03]} 3. Nc3 {[%emt 0:00:17]} Nf6 {[%emt 0:00:44]} 4. d3 {[%emt 0:00:16]}
dxe4 {[%emt 0:00:09]} 5. dxe4 {[%emt 0:00:06]} Qxd1+ {[%emt 0:00:05]} 6. Kxd1 {
[%emt 0:00:05]} Bg4 {[%emt 0:00:13]} 7. Be2 {[%emt 0:00:42]} Nbd7 {[%emt 0:00:
26]} 8. Be3 {[%emt 0:01:36]} e6 {[%emt 0:00:16]} 9. a3 {[%emt 0:00:41]} Bc5 {
[%emt 0:01:25]} 10. Bxc5 {[%emt 0:01:52]} Nxc5 {[%emt 0:00:02]} 11. e5 {[%emt
0:00:14]} Rd8+ {[%emt 0:02:24]} 12. Ke1 {[%emt 0:00:29]} Nd5 {[%emt 0:00:19]}
13. Nxd5 {[%emt 0:00:55]} Rxd5 {[%emt 0:00:27]} 14. Rd1 {[%emt 0:00:34]} Bxf3 {
[%emt 0:00:05]} 15. Bxf3 {[%emt 0:00:22]} Rxe5+ {[%emt 0:00:03]} 16. Kd2 {
[%emt 0:00:22]} Ne4+ {[%emt 0:00:14]} 17. Bxe4 {[%emt 0:00:06]} Rxe4 {[%emt 0:
00:01]} 18. Rhe1 {[%emt 0:00:36]} Rxe1 {[%emt 0:00:02]} 19. Kxe1 {[%emt 0:00:
02]} Ke7 {[%emt 0:00:02]} 20. Rd3 {[%emt 0:00:12]} Rd8 {[%emt 0:00:28]} 21. Rg3
{[%emt 0:00:10]} g6 {[%emt 0:00:05]} 22. Rh3 {[%emt 0:00:03]} h5 {[%emt 0:00:
01]} 23. Rb3 {[%emt 0:00:02]} b6 {[%emt 0:00:10]} 24. Rc3 {[%emt 0:00:19]} c5 {
[%emt 0:00:07]} 25. b4 {[%emt 0:00:45]} Rd5 {[%emt 0:00:04]} 26. f3 {[%emt 0:
00:41]} Kd6 {[%emt 0:00:04]} 27. g4 {[%emt 0:00:18]} hxg4 {[%emt 0:01:22]} 28.
fxg4 {[%emt 0:00:01]} g5 {[%emt 0:00:45]} 29. Rf3 {[%emt 0:00:14]} f5 {[%emt 0:
00:19]} 30. gxf5 {[%emt 0:00:04]} exf5 {[%emt 0:00:05]} 31. c4 {[%emt 0:01:05]}
Re5+ {[%emt 0:00:06]} 32. Kf2 {[%emt 0:00:28]} Ke6 {[%emt 0:01:14]} 33. Rh3 {
[%emt 0:00:28]} Re4 {[%emt 0:00:19]} 34. bxc5 {[%emt 0:00:10]} bxc5 {[%emt 0:
00:03]} 35. Rh7 {[%emt 0:00:10]} a5 {[%emt 0:00:16]} 36. Ra7 {[%emt 0:00:13]}
Rxc4 {[%emt 0:00:05]} 37. Rxa5 {[%emt 0:00:05]} Ke5 {[%emt 0:00:02]} 38. a4 {
[%emt 0:00:12]} Rc2+ {[%emt 0:01:11]} 39. Kg3 {[%emt 0:00:16]} Ke4 {[%emt 0:01:
11]} 40. Ra8 {[%emt 0:00:09]} f4+ {[%emt 0:00:15]} 41. Kg4 {[%emt 0:00:05]}
Rg2+ {[%emt 0:00:05]} 42. Kh5 {[%emt 0:00:04]} g4 {[%emt 0:00:37]} 43. a5 {
[%emt 0:00:16]} Kf3 {[%emt 0:00:08]} 44. a6 {[%emt 0:00:21]} Rxh2+ {[%emt 0:00:
02]} 45. Kg5 {[%emt 0:00:05]} Ra2 {[%emt 0:02:40]} 46. a7 {[%emt 0:00:07]} c4 {
[%emt 0:00:08]} 47. Rc8 {[%emt 0:00:10]} Ra5+ {[%emt 0:00:04]} 48. Kh4 {[%emt
0:00:18]} Rxa7 {[%emt 0:00:02]} 49. Rxc4 {[%emt 0:00:02]} Re7 {[%emt 0:00:11]}
50. Rc3+ {[%emt 0:00:08]} Re3 {[%emt 0:00:01]} 51. Rxe3+ {[%emt 0:00:02]} fxe3
{[%emt 0:00:05]} 52. Kg5 {[%emt 0:00:00]} e2 {[%emt 0:00:00]} 53. Kg6 {[%emt 0:
00:05]} e1=Q {[%emt 0:00:03]} 0-1

[Event "16th EWICC 2015"]
[Site "Kutaisi"]
[Date "2015.06.03"]
[Round "9"]
[White "Guramishvili, Sopiko"]
[Black "Galliamova, Alisa"]
[Result "0-1"]
[ECO "A06"]
[WhiteElo "2370"]
[BlackElo "2478"]
[Annotator "Robot 11"]
[PlyCount "86"]
[EventDate "2015.??.??"]
[EventCountry "GEO"]
[TimeControl "900+10"]

1. Nf3 {[%emt 0:00:03]} d5 {[%emt 0:00:01]} 2. g3 {[%emt 0:00:01]} g6 {[%emt 0:
00:17]} 3. Bg2 {[%emt 0:00:10]} Bg7 {[%emt 0:00:02]} 4. O-O {[%emt 0:00:03]} e5
{[%emt 0:00:08]} 5. d3 {[%emt 0:00:15]} Ne7 {[%emt 0:00:11]} 6. Nbd2 {[%emt 0:
00:06]} O-O {[%emt 0:00:06]} 7. c4 {[%emt 0:00:17]} dxc4 {[%emt 0:00:29]} 8.
Nxc4 {[%emt 0:00:11]} Nbc6 {[%emt 0:00:04]} 9. Bd2 {[%emt 0:00:35]} Be6 {[%emt
0:00:38]} 10. Rc1 {[%emt 0:00:47]} h6 {[%emt 0:01:29]} 11. b4 {[%emt 0:02:20]}
b5 {[%emt 0:01:38]} 12. Ne3 {[%emt 0:00:56]} Bxa2 {[%emt 0:03:00]} 13. Rc5 {
[%emt 0:00:16]} Be6 {[%emt 0:00:29]} 14. Rxb5 {[%emt 0:00:43]} Rb8 {[%emt 0:01:
22]} 15. Rxb8 {[%emt 0:00:34]} Qxb8 {[%emt 0:00:01]} 16. Qa4 {[%emt 0:01:07]}
Nd4 {[%emt 0:00:24]} 17. Nxd4 {[%emt 0:01:00]} exd4 {[%emt 0:00:01]} 18. Nc4 {
[%emt 0:01:42]} Nd5 {[%emt 0:00:30]} 19. Ra1 {[%emt 0:00:25]} Nc3 {[%emt 0:01:
16]} 20. Qxa7 {[%emt 0:00:23]} Qxb4 {[%emt 0:00:15]} 21. Qa5 {[%emt 0:02:52]}
Qb3 {[%emt 0:00:11]} 22. Qxc7 {[%emt 0:01:43]} Nxe2+ {[%emt 0:00:08]} 23. Kh1 {
[%emt 0:00:09]} Qxd3 {[%emt 0:00:09]} 24. Bb4 {[%emt 0:00:42]} Qxc4 {[%emt 0:
00:41]} 25. Qxc4 {[%emt 0:00:04]} Bxc4 {[%emt 0:00:01]} 26. Bxf8 {[%emt 0:00:
02]} Bxf8 {[%emt 0:00:11]} 27. Ra4 {[%emt 0:00:07]} d3 {[%emt 0:00:40]} 28. Ra8
{[%emt 0:00:02]} Kg7 {[%emt 0:00:09]} 29. Rd8 {[%emt 0:00:14]} Bb4 {[%emt 0:00:
42]} 30. Bf3 {[%emt 0:00:01]} Kf6 {[%emt 0:00:25]} 31. Bc6 {[%emt 0:00:53]} Ke7
{[%emt 0:00:22]} 32. Rd7+ {[%emt 0:00:05]} Ke6 {[%emt 0:00:01]} 33. Rd8 {[%emt
0:00:03]} d2 {[%emt 0:00:40]} 34. Kg2 {[%emt 0:00:28]} Ba5 {[%emt 0:00:32]} 35.
Re8+ {[%emt 0:00:20]} Kf6 {[%emt 0:00:17]} 36. Ba4 {[%emt 0:00:10]} Nc3 {[%emt
0:00:22]} 37. Bc2 {[%emt 0:00:07]} d1=Q {[%emt 0:00:12]} 38. Bxd1 {[%emt 0:00:
02]} Nxd1 {[%emt 0:00:02]} 39. Rc8 {[%emt 0:00:01]} Bd5+ {[%emt 0:00:12]} 40.
f3 {[%emt 0:00:02]} Ne3+ {[%emt 0:00:05]} 41. Kf2 {[%emt 0:00:06]} Nf5 {[%emt
0:00:09]} 42. g4 {[%emt 0:00:11]} Bb6+ {[%emt 0:00:08]} 43. Ke1 {[%emt 0:00:07]
} Nd6 {[%emt 0:00:44]} 0-1

[Event "16th EWICC 2015"]
[Site "Kutaisi"]
[Date "2015.06.03"]
[Round "9"]
[White "Gvetadze, Sofio"]
[Black "Gunina, Valentina"]
[Result "0-1"]
[ECO "A06"]
[WhiteElo "2319"]
[BlackElo "2535"]
[Annotator "Robot 11"]
[PlyCount "108"]
[EventDate "2015.??.??"]
[EventCountry "GEO"]
[TimeControl "900+10"]

1. Nf3 {[%emt 0:00:03]} d5 {[%emt 0:00:02]} 2. g3 {[%emt 0:00:01]} c6 {[%emt 0:
00:03]} 3. Bg2 {[%emt 0:00:02]} Bg4 {[%emt 0:00:03]} 4. O-O {[%emt 0:00:05]} e6
{[%emt 0:00:03]} 5. d3 {[%emt 0:00:29]} Nd7 {[%emt 0:00:06]} 6. c4 {[%emt 0:00:
35]} Bd6 {[%emt 0:00:15]} 7. Nc3 {[%emt 0:00:18]} Ne7 {[%emt 0:00:11]} 8. b3 {
[%emt 0:00:32]} O-O {[%emt 0:00:11]} 9. Bb2 {[%emt 0:00:01]} a6 {[%emt 0:00:31]
} 10. Rc1 {[%emt 0:00:10]} Rc8 {[%emt 0:00:05]} 11. Rc2 {[%emt 0:00:56]} b5 {
[%emt 0:00:11]} 12. Qa1 {[%emt 0:00:31]} e5 {[%emt 0:00:48]} 13. cxd5 {[%emt 0:
00:30]} cxd5 {[%emt 0:00:05]} 14. Rfc1 {[%emt 0:00:06]} Nf6 {[%emt 0:00:32]}
15. e4 {[%emt 0:03:34]} d4 {[%emt 0:00:15]} 16. Nb1 {[%emt 0:00:22]} Rxc2 {
[%emt 0:00:19]} 17. Rxc2 {[%emt 0:00:01]} Nd7 {[%emt 0:00:28]} 18. h3 {[%emt 0:
00:48]} Bh5 {[%emt 0:00:11]} 19. Nbd2 {[%emt 0:00:08]} Nc5 {[%emt 0:01:00]} 20.
Qf1 {[%emt 0:00:06]} f6 {[%emt 0:00:20]} 21. Nh4 {[%emt 0:01:42]} Qd7 {[%emt 0:
00:17]} 22. g4 {[%emt 0:02:29]} Bf7 {[%emt 0:00:12]} 23. Nf5 {[%emt 0:00:17]}
Ne6 {[%emt 0:00:09]} 24. Nxe7+ {[%emt 0:00:31]} Qxe7 {[%emt 0:00:11]} 25. Qc1 {
[%emt 0:00:08]} Nf4 {[%emt 0:00:07]} 26. Bf1 {[%emt 0:00:01]} h5 {[%emt 0:00:
01]} 27. Rc8 {[%emt 0:00:15]} Qd7 {[%emt 0:00:15]} 28. Rxf8+ {[%emt 0:00:03]}
Bxf8 {[%emt 0:00:02]} 29. f3 {[%emt 0:00:04]} g6 {[%emt 0:00:12]} 30. Qc2 {
[%emt 0:01:16]} Be6 {[%emt 0:00:08]} 31. Kf2 {[%emt 0:00:33]} Bh6 {[%emt 0:00:
25]} 32. Ba3 {[%emt 0:00:36]} Bg5 {[%emt 0:00:51]} 33. Qc5 {[%emt 0:00:09]} Qd8
{[%emt 0:01:17]} 34. Ke1 {[%emt 0:01:36]} Qc8 {[%emt 0:00:48]} 35. Kd1 {[%emt
0:00:11]} Qxc5 {[%emt 0:00:13]} 36. Bxc5 {[%emt 0:00:01]} Kf7 {[%emt 0:00:01]}
37. Kc2 {[%emt 0:00:17]} Bh4 {[%emt 0:00:26]} 38. a4 {[%emt 0:00:30]} f5 {
[%emt 0:00:09]} 39. gxf5 {[%emt 0:00:27]} gxf5 {[%emt 0:00:02]} 40. Bd6 {[%emt
0:00:11]} Bf6 {[%emt 0:00:11]} 41. axb5 {[%emt 0:00:16]} axb5 {[%emt 0:00:02]}
42. b4 {[%emt 0:00:15]} Bd7 {[%emt 0:00:39]} 43. Nb3 {[%emt 0:00:26]} fxe4 {
[%emt 0:00:50]} 44. dxe4 {[%emt 0:00:16]} Bxh3 {[%emt 0:00:27]} 45. Bxb5 {
[%emt 0:00:03]} Bg2 {[%emt 0:00:02]} 46. Nxd4 {[%emt 0:00:13]} h4 {[%emt 0:00:
16]} 47. Bc4+ {[%emt 0:00:05]} Kg6 {[%emt 0:02:01]} 48. Ne6 {[%emt 0:00:06]}
Nh5 {[%emt 0:00:46]} 49. f4 {[%emt 0:00:20]} h3 {[%emt 0:00:23]} 50. fxe5 {
[%emt 0:00:10]} h2 {[%emt 0:00:24]} 51. Nf8+ {[%emt 0:00:14]} Kh6 {[%emt 0:00:
21]} 52. exf6 {[%emt 0:00:08]} Bxe4+ {[%emt 0:00:22]} 53. Kb3 {[%emt 0:00:04]}
h1=Q {[%emt 0:00:06]} 54. Ka4 {[%emt 0:00:17]} Qd1+ {[%emt 0:00:07]} 0-1

[Event "16th EWICC 2015"]
[Site "Kutaisi"]
[Date "2015.06.03"]
[Round "9"]
[White "Ibrahimova, Sabina"]
[Black "Nikoladze, Sopio"]
[Result "1-0"]
[ECO "B07"]
[WhiteElo "2272"]
[BlackElo "2155"]
[Annotator "Robot 11"]
[PlyCount "85"]
[EventDate "2015.??.??"]
[EventCountry "GEO"]
[TimeControl "900+10"]

1. e4 {[%emt 0:00:01]} d6 {[%emt 0:00:03]} 2. d4 {[%emt 0:00:02]} Nf6 {[%emt 0:
00:01]} 3. Nc3 {[%emt 0:00:03]} Nbd7 {[%emt 0:00:01]} 4. Nf3 {[%emt 0:00:05]}
e5 {[%emt 0:00:02]} 5. Bc4 {[%emt 0:00:02]} Be7 {[%emt 0:00:03]} 6. O-O {[%emt
0:00:05]} c6 {[%emt 0:00:02]} 7. a4 {[%emt 0:00:04]} O-O {[%emt 0:00:02]} 8.
Re1 {[%emt 0:00:06]} Qc7 {[%emt 0:00:02]} 9. h3 {[%emt 0:00:08]} b6 {[%emt 0:
00:06]} 10. d5 {[%emt 0:01:01]} c5 {[%emt 0:00:02]} 11. Nh4 {[%emt 0:01:05]} g6
{[%emt 0:00:23]} 12. Bg5 {[%emt 0:01:23]} Qd8 {[%emt 0:00:17]} 13. Bh6 {[%emt
0:01:46]} Re8 {[%emt 0:00:04]} 14. Qd2 {[%emt 0:00:54]} Nh5 {[%emt 0:02:56]}
15. Nf3 {[%emt 0:00:06]} Bf8 {[%emt 0:00:31]} 16. g3 {[%emt 0:04:17]} Bxh6 {
[%emt 0:01:18]} 17. Qxh6 {[%emt 0:00:02]} Nf8 {[%emt 0:00:03]} 18. Kg2 {[%emt
0:00:18]} Qf6 {[%emt 0:00:31]} 19. Be2 {[%emt 0:00:44]} Rd8 {[%emt 0:01:40]}
20. Nh2 {[%emt 0:00:36]} Ng7 {[%emt 0:00:16]} 21. Rf1 {[%emt 0:00:34]} Qe7 {
[%emt 0:00:11]} 22. f4 {[%emt 0:00:54]} exf4 {[%emt 0:00:14]} 23. Rxf4 {[%emt
0:00:47]} f5 {[%emt 0:00:48]} 24. Raf1 {[%emt 0:00:20]} Bd7 {[%emt 0:02:05]}
25. h4 {[%emt 0:01:42]} Re8 {[%emt 0:00:45]} 26. g4 {[%emt 0:01:03]} fxe4 {
[%emt 0:02:16]} 27. Nxe4 {[%emt 0:00:25]} Qxe4+ {[%emt 0:00:46]} 28. Rxe4 {
[%emt 0:00:07]} Rxe4 {[%emt 0:00:01]} 29. Bd3 {[%emt 0:00:11]} Rxa4 {[%emt 0:
00:17]} 30. c4 {[%emt 0:00:47]} Be8 {[%emt 0:01:14]} 31. Qf4 {[%emt 0:00:12]}
Nd7 {[%emt 0:00:04]} 32. Qxd6 {[%emt 0:00:01]} Ra2 33. Rf2 Ra1 {[%emt 0:00:15]}
34. Nf3 {[%emt 0:00:05]} Rd1 {[%emt 0:00:04]} 35. Ne5 {[%emt 0:00:05]} Rxd3 {
[%emt 0:00:17]} 36. Nxd3 {[%emt 0:00:04]} h6 {[%emt 0:00:07]} 37. Ne5 {[%emt 0:
00:07]} Nxe5 {[%emt 0:00:03]} 38. Rf8+ {[%emt 0:00:12]} Kh7 {[%emt 0:00:01]}
39. Qxe5 {[%emt 0:00:02]} Rd8 {[%emt 0:00:12]} 40. Kg3 {[%emt 0:00:08]} h5 {
[%emt 0:00:06]} 41. g5 {[%emt 0:00:21]} Nf5+ {[%emt 0:00:03]} 42. Rxf5 {[%emt
0:00:02]} gxf5 {[%emt 0:00:02]} 43. Qe7+ {[%emt 0:00:01]} 1-0

[Event "16th EWICC 2015"]
[Site "Kutaisi"]
[Date "2015.06.03"]
[Round "9"]
[White "Javakhishvili, Lela"]
[Black "Daulyte, Deimante"]
[Result "1/2-1/2"]
[ECO "E32"]
[WhiteElo "2472"]
[BlackElo "2402"]
[Annotator "Robot 11"]
[PlyCount "74"]
[EventDate "2015.??.??"]
[EventCountry "GEO"]
[TimeControl "900+10"]

1. d4 {[%emt 0:00:02]} Nf6 {[%emt 0:00:02]} 2. c4 {[%emt 0:00:02]} e6 {[%emt 0:
00:05]} 3. Nc3 {[%emt 0:00:04]} Bb4 {[%emt 0:00:06]} 4. Qc2 {[%emt 0:00:02]} b6
{[%emt 0:00:11]} 5. e4 {[%emt 0:00:16]} c5 {[%emt 0:00:06]} 6. d5 {[%emt 0:00:
21]} Qe7 {[%emt 0:00:18]} 7. dxe6 {[%emt 0:03:57]} Qxe6 {[%emt 0:00:36]} 8. Bd3
{[%emt 0:00:09]} Nc6 {[%emt 0:04:33]} 9. Nf3 {[%emt 0:02:01]} Ba6 {[%emt 0:03:
28]} 10. O-O {[%emt 0:02:08]} Bxc4 {[%emt 0:02:06]} 11. e5 {[%emt 0:01:09]}
Bxd3 {[%emt 0:00:32]} 12. Qxd3 {[%emt 0:00:02]} Nxe5 {[%emt 0:00:22]} 13. Nxe5
{[%emt 0:01:15]} Qxe5 {[%emt 0:00:01]} 14. Nb5 {[%emt 0:04:54]} O-O {[%emt 0:
00:52]} 15. a3 {[%emt 0:00:02]} Ba5 {[%emt 0:00:07]} 16. Nd6 {[%emt 0:00:03]}
b5 {[%emt 0:01:09]} 17. f4 {[%emt 0:00:27]} Qd5 {[%emt 0:00:44]} 18. Qxd5 {
[%emt 0:00:15]} Nxd5 {[%emt 0:00:02]} 19. Nxb5 {[%emt 0:00:02]} Rfe8 {[%emt 0:
00:22]} 20. Nd6 {[%emt 0:00:05]} Re2 {[%emt 0:00:24]} 21. Nc4 {[%emt 0:00:03]}
Bc7 {[%emt 0:00:10]} 22. Bd2 {[%emt 0:00:09]} Re4 {[%emt 0:00:45]} 23. Rac1 {
[%emt 0:00:23]} Nxf4 {[%emt 0:00:06]} 24. Rc2 {[%emt 0:00:36]} d5 {[%emt 0:00:
30]} 25. Ne3 {[%emt 0:00:02]} d4 {[%emt 0:00:21]} 26. Nf5 {[%emt 0:00:21]} d3 {
[%emt 0:00:25]} 27. Bxf4 {[%emt 0:00:14]} Bxf4 {[%emt 0:00:36]} 28. Rxc5 {
[%emt 0:00:05]} g6 {[%emt 0:00:05]} 29. Ng3 {[%emt 0:00:23]} Bxg3 {[%emt 0:00:
09]} 30. hxg3 {[%emt 0:00:01]} Rd8 {[%emt 0:00:09]} 31. Rd1 {[%emt 0:00:01]} d2
{[%emt 0:00:03]} 32. Kf2 {[%emt 0:00:01]} Rd7 {[%emt 0:00:08]} 33. Rc2 {[%emt
0:00:02]} Red4 {[%emt 0:00:01]} 34. Ke2 {[%emt 0:00:05]} Re7+ {[%emt 0:00:02]}
35. Kf2 {[%emt 0:00:02]} Red7 {[%emt 0:00:11]} 36. Ke2 {[%emt 0:00:01]} Re7+ {
[%emt 0:00:19]} 37. Kf2 {[%emt 0:00:00]} Red7 {[%emt 0:00:01]} 1/2-1/2